bitfinex/quotes_SOLUSD_20251212
["timestamp","ask_amount","ask_price","bid_price","bid_amount"]
[1765502468573,0.1,136.87,136.86,42.70682499]
[1765502468863,0.1,136.87,136.86,50.0135618]
[1765502469780,1e-08,136.87,136.86,36.9664706]
[1765502471576,0.1,136.91,136.9,8.80994492]
[1765502471778,0.1,136.91,136.9,29.65973379]
[1765502472268,0.1,136.91,136.9,17.75426806]
[1765502472481,0.1,136.91,136.9,29.65973379]
[1765502473666,0.1,136.91,136.9,36.96433568]
[1765502474849,0.1,136.91,136.9,28.96433568]
[1765502475080,0.1,136.91,136.9,36.96433568]
[1765502475579,0.1,136.91,136.9,16.80994492]
[1765502476973,0.1,136.91,136.9,24.11454681]
[1765502477168,0.1,136.91,136.9,24.39886995]
[1765502477753,0.1,136.91,136.9,16.80994492]
[1765502478054,0.77,136.91,136.89,16.80994492]
[1765502478669,12.67546573,136.91,136.89,8.0]
[1765502479066,0.67,136.9,136.88,8.80994492]
[1765502479679,0.1,136.91,136.9,8.80994492]
[1765502480681,0.82,136.91,136.89,8.0]
[1765502482460,0.1,136.91,136.89,8.0]
[1765502482691,0.1,136.91,136.9,8.80994492]
[1765502483274,0.1,136.91,136.9,21.70973379]
[1765502483994,0.82,136.91,136.89,8.0]
[1765502485065,0.1,136.91,136.89,8.0]
[1765502485490,0.82,136.91,136.89,8.0]
[1765502485679,0.1,136.91,136.9,8.80994492]
[1765502486082,0.1,136.91,136.9,28.73001254]
[1765502486301,0.1,136.91,136.9,21.42541065]
[1765502486809,0.1,136.91,136.9,20.71541065]
[1765502486980,0.1,136.91,136.9,8.80994492]
[1765502487184,0.1,136.91,136.9,20.71541065]
[1765502487568,0.1,136.91,136.9,8.80994492]
[1765502487764,0.1,136.91,136.9,20.71541065]
[1765502488391,0.1,136.91,136.9,28.02001254]
[1765502489093,0.1,136.91,136.9,29.01433568]
[1765502490001,0.1,136.91,136.9,42.06142688]
[1765502490674,0.1,136.91,136.9,37.46902129]
[1765502492996,0.1,136.92,136.91,0.28432314]
[1765502493204,1e-08,136.92,136.91,38.1644194]
[1765502493588,1e-08,136.93,136.92,9.80426806]
[1765502493789,0.72,137.04,136.96,8.80994492]
[1765502494028,0.72,137.04,137.01,7.31306014]
[1765502494190,0.72,137.04,137.0,8.0]
[1765502494391,8.03306014,137.04,137.0,8.0]
[1765502494595,7.31306014,137.02,137.0,8.0]
[1765502494906,7.31306014,137.02,136.98,8.0]
[1765502495208,14.61233021,137.0,136.98,8.0]
[1765502495620,0.72,136.99,136.98,8.0]
[1765502497085,15.33286304,136.99,136.98,8.0]
[1765502497285,15.33286304,136.99,136.95,8.0]
[1765502497509,8.03306014,136.98,136.95,8.0]
[1765502498009,8.03306014,136.98,136.92,7.31306014]
[1765502498010,8.03306014,136.97,136.93,8.0]
[1765502498185,0.72,136.97,136.93,8.0]
[1765502498389,0.72,136.96,136.93,8.0]
[1765502499311,8.02143624,136.96,136.93,8.0]
[1765502499812,0.72,136.95,136.93,8.0]
[1765502501480,0.72,136.95,136.92,8.80994492]
[1765502501705,0.72,136.95,136.93,8.0]
[1765502503010,8.02195167,136.95,136.93,8.0]
[1765502503315,8.02195167,136.95,136.92,8.0]
[1765502503513,0.7,136.94,136.92,8.0]
[1765502503814,0.7,136.94,136.9,8.80994492]
[1765502504115,0.7,136.94,136.89,8.0]
[1765502504318,0.7,136.94,136.92,7.31306014]
[1765502504611,0.7,136.96,136.9,17.48994492]
[1765502504816,0.7,136.96,136.94,16.12300506]
[1765502505320,8.00040359,136.98,136.94,23.42543099]
[1765502505619,0.7,136.97,136.94,23.42543099]
[1765502505798,0.7,136.97,136.94,16.12300506]
[1765502506196,0.7,136.97,136.94,8.80994492]
[1765502506891,8.00092628,136.97,136.94,8.80994492]
[1765502507429,0.7,136.96,136.94,8.80994492]
[1765502507629,0.7,136.96,136.94,16.11234359]
[1765502507796,0.7,137.0,136.96,8.80994492]
[1765502508005,0.7,137.0,136.98,16.12300506]
[1765502508317,0.7,137.02,137.0,8.80994492]
[1765502508517,0.7,137.02,137.0,24.12300506]
[1765502508893,0.7,137.04,137.01,7.31306014]
[1765502509404,0.7,137.04,137.01,14.61175073]
[1765502509722,0.7,137.04,137.01,7.31306014]
[1765502509909,7.99734137,137.04,137.01,7.31306014]
[1765502510306,7.99734137,137.04,137.0,24.12300506]
[1765502510505,0.7,137.03,137.0,16.80994492]
[1765502510703,0.7,137.03,137.0,8.0]
[1765502510914,8.01306014,137.03,137.0,8.0]
[1765502511103,7.31306014,137.01,136.98,8.0]
[1765502511319,7.99820464,137.02,136.98,8.0]
[1765502511507,0.7,137.01,136.98,8.0]
[1765502511821,0.7,137.01,136.99,8.80994492]
[1765502513519,26.25632952,137.04,136.99,9.48994492]
[1765502513718,0.7,137.03,136.99,16.80300506]
[1765502514037,7.99808625,137.03,136.99,24.10276397]
[1765502514194,7.99808625,137.03,136.99,23.42276397]
[1765502514396,0.7,137.02,136.99,23.42276397]
[1765502514628,0.7,137.02,136.99,16.12300506]
[1765502514814,0.7,137.02,136.99,8.80994492]
[1765502515128,7.99858041,137.02,136.99,8.80994492]
[1765502515633,7.29776305,137.03,136.99,8.80994492]
[1765502515843,0.7,137.03,136.99,16.12300506]
[1765502516006,0.7,137.03,137.0,7.31306014]
[1765502516209,0.7,137.03,136.99,16.80300506]
[1765502516717,8.01306014,137.03,136.99,8.80994492]
[1765502517138,0.7,137.02,136.99,8.80994492]
[1765502517437,7.99847557,137.02,136.99,8.80994492]
[1765502517609,0.7,137.01,136.99,8.80994492]
[1765502518125,7.29847557,137.02,136.99,8.80994492]
[1765502518297,0.7,137.02,136.99,23.42279537]
[1765502518735,7.99723609,137.04,136.99,24.10279537]
[1765502518907,0.7,137.03,136.99,23.42279537]
[1765502519337,7.99769257,137.03,136.99,8.80994492]
[1765502519928,0.7,137.02,136.99,8.80994492]
[1765502521029,7.29769257,137.03,136.99,16.80300506]
[1765502521227,7.99769257,137.03,136.99,16.80300506]
[1765502521542,0.7,137.02,136.99,24.10270868]
[1765502522432,0.7,137.02,136.99,16.80300506]
[1765502522822,0.7,137.02,136.99,12.35405631]
[1765502523233,0.7,137.02,136.99,19.65372295]
[1765502523606,7.99720048,137.04,137.01,8.80994492]
[1765502523807,0.7,137.03,137.01,16.80994492]
[1765502526512,0.8,137.05,137.01,24.1086467]
[1765502526726,0.7,137.04,137.01,24.1086467]
[1765502527131,0.7,137.04,137.01,16.80994492]
[1765502527328,2.86411139,137.02,136.96,6.12231447]
[1765502527532,2.86411139,137.01,136.97,8.0]
[1765502527845,0.7,137.03,136.97,8.0]
[1765502528014,2.86411139,137.01,136.97,8.0]
[1765502528548,0.7,137.0,136.97,8.0]
[1765502528716,7.99945841,137.0,136.97,8.0]
[1765502528911,7.99945841,137.0,136.92,0.68]
[1765502528912,2.86411139,136.98,136.92,0.68]
[1765502529134,3.56411139,136.98,136.95,8.80994492]
[1765502529337,0.7,136.98,136.93,0.14216157]
[1765502529544,0.7,136.98,136.95,8.80994492]
[1765502529734,3.56411139,136.98,136.95,8.80994492]
[1765502530126,0.7,136.97,136.95,8.80994492]
[1765502530434,0.7,136.97,136.93,12.35405631]
[1765502530632,0.7,136.97,136.93,19.65678922]
[1765502530818,10.86547443,136.97,136.93,9.48994492]
[1765502531023,10.86547443,136.97,136.92,8.0]
[1765502531233,2.86411139,136.94,136.88,6.80231447]
[1765502531417,0.7,136.96,136.9,15.30449711]
[1765502531616,3.56411139,136.96,136.91,8.80994492]
[1765502531827,0.7,136.96,136.91,8.80994492]
[1765502532033,0.7,136.95,136.91,11.67405631]
[1765502532625,0.7,136.95,136.91,8.80994492]
[1765502532827,8.0022104,136.95,136.91,8.80994492]
[1765502533237,0.7,136.94,136.91,8.80994492]
[1765502533441,0.7,136.94,136.91,18.97793741]
[1765502533639,0.7,136.94,136.91,16.11382602]
[1765502534549,0.7,136.94,136.91,8.80994492]
[1765502534925,0.7,136.94,136.91,9.49994492]
[1765502535122,8.00150139,136.96,136.91,23.42972418]
[1765502535336,8.00150139,136.96,136.93,8.80994492]
[1765502535539,8.00150139,136.96,136.93,16.80994492]
[1765502535936,8.00150139,136.96,136.93,17.46994492]
[1765502536246,0.7,136.97,136.93,24.78566151]
[1765502537051,8.00120263,136.97,136.93,17.46994492]
[1765502537539,0.7,136.96,136.93,16.80994492]
[1765502539336,8.00165542,136.96,136.93,16.80994492]
[1765502539533,0.7,136.96,136.93,16.80994492]
[1765502539742,0.7,136.99,136.95,8.80994492]
[1765502540056,8.01571659,137.01,136.97,8.80994492]
[1765502540258,0.7,137.01,136.97,8.80994492]
[1765502540460,7.29820464,137.02,136.97,16.12566151]
[1765502540461,0.7,137.0,136.97,16.12566151]
[1765502540752,0.7,137.01,136.97,9.46994492]
[1765502541051,0.7,137.03,136.98,8.26003973]
[1765502541361,8.01571659,137.02,136.99,8.0]
[1765502541726,8.01571659,137.01,136.97,8.0]
[1765502542230,0.7,137.0,136.97,8.0]
[1765502542634,8.01571659,137.0,136.97,8.0]
[1765502542947,8.01571659,137.0,136.92,6.12231447]
[1765502542948,7.31571659,136.98,136.93,8.80994492]
[1765502543151,7.31571659,136.98,136.9,21.91300536]
[1765502543152,7.31571659,136.96,136.91,7.30390373]
[1765502543331,14.61802306,136.95,136.91,8.0]
[1765502543520,14.61802306,136.95,136.92,8.80994492]
[1765502543724,0.7,136.94,136.92,8.80994492]
[1765502544748,8.001581,136.96,136.92,8.80994492]
[1765502545050,0.7,136.95,136.92,8.80994492]
[1765502545954,8.00214687,136.95,136.92,8.80994492]
[1765502546629,0.7,136.94,136.92,8.80994492]
[1765502549532,0.7,136.94,136.89,23.71465131]
[1765502549743,0.7,136.94,136.91,8.80994492]
[1765502550656,8.00257451,136.94,136.9,16.11447691]
[1765502551033,0.7,136.93,136.9,16.11447691]
[1765502551748,0.7,136.93,136.9,23.4301935]
[1765502551947,0.7,136.93,136.91,7.31571659]
[1765502552131,0.7,136.95,136.92,7.31571659]
[1765502552759,0.7,136.95,136.92,11.88577036]
[1765502553337,0.7,136.95,136.92,19.18921592]
[1765502553558,8.0,136.98,136.93,21.35571528]
[1765502553854,0.7,136.97,136.94,11.88577036]
[1765502554156,0.7,136.97,136.93,20.69571528]
[1765502554745,8.00106424,136.97,136.93,13.28938021]
[1765502555562,0.7,136.96,136.93,13.28938021]
[1765502557959,0.7,136.96,136.93,8.80994492]
[1765502558264,0.7,136.96,136.93,13.28938021]
[1765502558761,0.7,136.96,136.93,8.80994492]
[1765502558968,4.47943529,136.94,136.88,7.96557385]
[1765502559139,0.7,136.93,136.89,8.80994492]
[1765502559342,7.30262959,136.94,136.9,4.47943529]
[1765502559557,22.73293996,136.96,136.91,4.47943529]
[1765502559762,0.7,136.93,136.91,4.47943529]
[1765502560769,0.7,136.93,136.9,4.47943529]
[1765502560941,8.00309005,136.93,136.9,4.47943529]
[1765502561464,8.00309005,136.93,136.89,16.77491845]
[1765502561665,5.17943529,136.92,136.88,8.0]
[1765502562054,0.7,136.93,136.89,5.13943529]
[1765502562256,0.7,136.93,136.9,8.80994492]
[1765502562563,0.7,136.93,136.9,20.59388633]
[1765502562745,0.7,136.93,136.9,13.28938021]
[1765502563139,7.30257338,136.94,136.9,13.28938021]
[1765502563140,7.30257338,136.94,136.9,21.26397106]
[1765502563346,8.02257338,136.94,136.9,21.26397106]
[1765502563758,7.30257338,136.94,136.9,13.28938021]
[1765502564076,0.72,136.93,136.9,13.28938021]
[1765502564367,0.72,136.93,136.9,8.80994492]
[1765502564567,0.72,136.93,136.9,13.28938021]
[1765502564742,0.72,136.93,136.9,20.59393315]
[1765502564940,0.72,136.93,136.9,8.80994492]
[1765502565257,8.02313481,136.93,136.89,8.80994492]
[1765502565670,0.72,136.92,136.89,16.11502015]
[1765502567468,0.72,136.92,136.89,20.59445544]
[1765502568259,8.02354581,136.92,136.88,15.97564275]
[1765502568455,8.02354581,136.92,136.88,20.45507804]
[1765502568659,8.02354581,136.92,136.88,15.97564275]
[1765502568860,8.02354581,136.92,136.89,4.47943529]
[1765502569362,0.72,136.91,136.89,4.47943529]
[1765502569560,0.72,136.91,136.88,15.30564275]
[1765502569871,8.02419839,136.91,136.87,16.11597777]
[1765502570374,0.72,136.9,136.87,16.11597777]
[1765502571169,0.72,136.9,136.87,21.26541306]
[1765502571759,0.72,136.9,136.87,20.59541306]
[1765502572664,0.72,136.9,136.87,21.26541306]
[1765502573060,0.72,136.9,136.87,16.78597777]
[1765502573286,0.72,136.9,136.87,21.26541306]
[1765502573469,0.72,136.9,136.89,4.47943529]
[1765502573785,7.30361054,136.92,136.89,4.47943529]
[1765502573786,0.72,136.92,136.89,4.47943529]
[1765502573952,0.72,136.91,136.9,4.47943529]
[1765502574150,0.72,136.93,136.9,4.47943529]
[1765502574383,0.72,136.93,136.91,4.47943529]
[1765502575161,15.30209421,136.95,136.91,4.47943529]
[1765502575369,8.0214738,136.96,136.93,4.47943529]
[1765502575555,0.72,136.95,136.93,4.47943529]
[1765502575754,0.72,136.95,136.94,4.47943529]
[1765502576555,8.02145647,136.96,136.94,4.47943529]
[1765502576756,0.72,136.95,136.94,4.47943529]
[1765502576955,0.72,136.95,136.92,8.67]
[1765502577267,0.72,136.95,136.93,4.47943529]
[1765502577778,8.0220588,136.95,136.92,12.47943529]
[1765502577958,8.0220588,136.95,136.91,13.28938021]
[1765502578159,0.72,136.94,136.91,13.28938021]
[1765502578878,0.72,136.94,136.93,4.47943529]
[1765502579465,0.72,136.94,136.91,16.11392782]
[1765502579656,0.72,136.94,136.92,4.47943529]
[1765502582380,0.72,136.94,136.91,16.11392782]
[1765502582594,0.72,136.94,136.92,4.47943529]
[1765502583563,0.72,136.94,136.91,16.11392782]
[1765502583887,0.72,136.94,136.92,4.47943529]
[1765502586584,4.47943529,136.93,136.87,10.60174976]
[1765502586773,4.47943529,136.93,136.87,4.47943529]
[1765502586976,0.72,136.92,136.87,4.47943529]
[1765502587369,0.72,136.96,136.91,11.78305502]
[1765502587571,0.72,136.96,136.93,4.47943529]
[1765502587786,0.72,136.96,136.94,4.47943529]
[1765502588199,0.72,136.96,136.92,7.9733106]
[1765502588488,0.72,136.96,136.93,4.47943529]
[1765502588867,0.72,136.96,136.94,4.47943529]
[1765502589381,8.02148417,136.96,136.94,4.47943529]
[1765502589788,0.72,136.95,136.94,4.47943529]
[1765502590480,0.72,136.95,136.93,7.30278516]
[1765502590779,0.72,136.95,136.94,4.47943529]
[1765502592476,7.30106126,136.97,136.94,4.47943529]
[1765502592684,0.72,136.96,136.94,4.47943529]
[1765502593180,0.67,136.99,136.95,5.19943529]
[1765502593388,0.67,136.98,136.96,4.47943529]
[1765502594597,0.67,136.98,136.94,16.02218628]
[1765502594598,0.67,136.98,136.97,4.47943529]
[1765502595183,7.97937635,137.0,136.97,4.47943529]
[1765502595384,7.97838207,137.02,136.99,4.47943529]
[1765502595591,7.29838207,137.02,136.99,4.47943529]
[1765502595794,0.68,137.01,136.99,4.47943529]
[1765502597107,7.97877383,137.01,136.99,4.47943529]
[1765502598520,7.29834994,137.02,137.0,4.47943529]
[1765502599140,0.68,137.01,137.0,4.47943529]
[1765502600212,7.29767204,137.03,137.0,4.47943529]
[1765502600384,7.97767204,137.03,137.0,4.47943529]
[1765502600698,7.97767204,137.03,136.99,4.47943529]
[1765502600699,0.68,137.02,136.99,4.47943529]
[1765502601009,0.68,137.02,137.0,4.47943529]
[1765502601187,0.68,137.03,137.01,4.47943529]
[1765502601387,103.2,137.04,137.01,0.68]
[1765502601604,103.88,137.04,137.02,4.47943529]
[1765502601802,103.88,137.04,137.01,0.68]
[1765502602088,103.88,137.04,137.02,4.47943529]
[1765502602290,8.1,137.05,137.03,4.47943529]
[1765502602488,0.1,137.05,137.04,4.47943529]
[1765502602807,0.1,137.05,137.04,13.28938021]
[1765502602981,0.1,137.05,137.04,13.96938021]
[1765502603515,0.1,137.05,137.04,4.47943529]
[1765502603903,0.1,137.05,137.04,13.96938021]
[1765502605080,0.1,137.05,137.04,21.26651973]
[1765502605891,0.1,137.05,137.04,13.96938021]
[1765502608596,0.1,137.05,137.04,21.26651973]
[1765502609215,0.1,137.05,137.04,13.96938021]
[1765502610533,0.1,137.05,137.04,21.26651973]
[1765502611199,0.1,137.05,137.04,21.55084287]
[1765502612319,0.1,137.05,137.04,21.26651973]
[1765502613914,0.1,137.05,137.04,21.55084287]
[1765502614791,0.1,137.05,137.04,19.93297404]
[1765502615724,0.1,137.05,137.04,17.07140758]
[1765502615912,0.1,137.05,137.04,19.93297404]
[1765502616221,0.1,137.05,137.04,19.25297404]
[1765502616425,0.1,137.05,137.04,19.93297404]
[1765502616718,0.1,137.05,137.04,19.6486509]
[1765502617018,0.1,137.05,137.04,11.67151138]
[1765502617223,0.78,137.05,137.02,2.86156646]
[1765502617432,0.78,137.05,137.01,10.86156646]
[1765502617600,0.78,137.05,137.0,2.86156646]
[1765502618125,0.78,137.05,136.99,8.68]
[1765502618126,7.29713952,137.04,136.99,8.68]
[1765502618301,7.29713952,137.04,137.01,2.86156646]
[1765502618497,0.68,137.03,136.99,8.68]
[1765502618696,0.68,137.03,137.01,2.86156646]
[1765502619221,7.97806441,137.03,136.99,8.68]
[1765502619421,7.97806441,137.03,137.01,2.86156646]
[1765502622632,7.29806441,137.03,137.01,2.86156646]
[1765502622797,8.00806441,137.03,137.01,2.86156646]
[1765502623204,0.71,137.02,137.01,2.86156646]
[1765502623948,0.71,137.02,136.99,8.68]
[1765502624101,8.0082892,137.02,136.98,11.67151138]
[1765502624304,8.0082892,137.02,136.95,2.86156646]
[1765502624603,3.57156646,137.01,136.95,2.86156646]
[1765502625132,0.71,137.0,136.95,2.86156646]
[1765502625637,7.2998029,136.99,136.95,2.86156646]
[1765502626145,0.71,136.98,136.94,10.86156646]
[1765502626706,8.01069317,136.98,136.94,10.86156646]
[1765502627018,8.01069317,136.98,136.95,2.86156646]
[1765502627219,0.71,136.97,136.95,2.86156646]
[1765502628015,0.71,136.97,136.96,2.86156646]
[1765502628432,0.71,136.97,136.95,2.86156646]
[1765502629934,8.00993984,136.99,136.96,2.86156646]
[1765502630116,0.71,137.01,136.98,2.86156646]
[1765502631346,8.00873731,137.01,136.98,2.86156646]
[1765502631518,8.00873731,137.01,136.99,2.86156646]
[1765502633854,8.00873731,137.01,136.97,8.02075681]
[1765502634059,103.2,137.03,137.0,2.86156646]
[1765502634216,103.2,137.03,137.02,2.86156646]
[1765502634423,0.71,137.04,137.02,2.86156646]
[1765502635139,0.1,137.05,137.04,8.80994492]
[1765502635339,0.1,137.05,137.04,12.39151138]
[1765502637634,0.1,137.05,137.04,19.6886509]
[1765502640929,0.1,137.05,137.04,9.52994492]
[1765502641125,0.1,137.05,137.04,12.39151138]
[1765502642251,0.1,137.05,137.04,11.67151138]
[1765502643355,0.1,137.05,137.04,12.39151138]
[1765502643947,0.1,137.05,137.02,8.0]
[1765502644179,0.81,137.05,137.01,8.80994492]
[1765502644447,0.81,137.05,137.02,2.86156646]
[1765502644754,8.107051,137.05,137.02,2.86156646]
[1765502645146,0.71,137.04,137.02,2.86156646]
[1765502646040,0.71,137.04,137.01,11.67151138]
[1765502646443,0.71,137.04,137.01,8.80994492]
[1765502646642,8.00762814,137.04,137.01,11.67151138]
[1765502647758,7.29762814,137.04,137.01,9.52994492]
[1765502647932,8.00762814,137.04,137.01,9.52994492]
[1765502648134,8.00762814,137.04,137.01,8.80994492]
[1765502648329,8.00762814,137.04,137.02,2.86156646]
[1765502649035,0.1,137.05,137.03,11.67151138]
[1765502649229,0.1,137.05,137.03,12.39151138]
[1765502649660,0.1,137.05,137.03,9.52994492]
[1765502649855,0.1,137.05,137.03,11.67151138]
[1765502650239,0.1,137.05,137.04,12.39151138]
[1765502652842,0.1,137.05,137.04,19.6886509]
[1765502653342,0.1,137.05,137.04,19.97297404]
[1765502654463,0.1,137.05,137.04,8.80994492]
[1765502654648,0.1,137.05,137.04,11.67151138]
[1765502655049,0.1,137.05,137.04,12.36151138]
[1765502655245,0.1,137.05,137.04,19.80081247]
[1765502655445,0.1,137.05,137.04,19.94297404]
[1765502657847,0.1,137.05,137.04,20.44297404]
[1765502659201,0.1,137.13,137.12,13.33141434]
[1765502659369,0.1,137.15,137.14,0.28432314]
[1765502659670,0.1,137.19,137.16,0.28432314]
[1765502659862,0.1,137.19,137.18,0.28432314]
[1765502660046,0.1,137.19,137.18,11.95583452]
[1765502660246,0.1,137.19,137.18,19.64120375]
[1765502662269,0.1,137.19,137.18,20.33151138]
[1765502662471,0.1,137.19,137.18,27.62120375]
[1765502662875,0.1,137.19,137.18,26.94120375]
[1765502663079,0.1,137.19,137.18,19.65151138]
[1765502663252,0.1,137.19,137.18,16.78994492]
[1765502663577,0.82,137.19,137.17,8.80994492]
[1765502663977,0.1,137.19,137.18,7.28969237]
[1765502664277,0.1,137.19,137.18,15.26969237]
[1765502665476,0.1,137.19,137.18,7.98]
[1765502665781,0.1,137.19,137.16,7.98]
[1765502666079,3.68156646,137.19,137.15,8.80994492]
[1765502666278,0.82,137.19,137.15,8.80994492]
[1765502666583,0.72,137.18,137.15,8.80994492]
[1765502667678,0.72,137.18,137.15,18.96268942]
[1765502668061,0.1,137.19,137.17,11.67151138]
[1765502669278,0.1,137.19,137.18,19.92552689]
[1765502669476,0.1,137.19,137.18,19.24552689]
[1765502669785,0.1,137.19,137.18,19.92552689]
[1765502670800,0.1,137.19,137.18,24.34858066]
[1765502671788,0.1,137.19,137.18,37.89567186]
[1765502676804,0.1,137.19,137.18,42.44272592]
[1765502678085,0.1,137.19,137.18,42.30056435]
[1765502678274,0.1,137.19,137.18,41.62056435]
[1765502678591,0.1,137.19,137.18,41.76272592]
[1765502678983,0.1,137.19,137.18,41.47840278]
[1765502679295,0.1,137.19,137.18,41.62056435]
[1765502679685,0.1,137.19,137.18,41.76272592]
[1765502680096,0.82,137.19,137.18,34.18871041]
[1765502680397,0.1,137.19,137.18,34.18871041]
[1765502680693,112.77931171,137.96,137.19,8.95210649]
[1765502680694,7.28613571,137.25,137.19,8.95210649]
[1765502681010,0.72,137.26,137.24,11.83167429]
[1765502681303,0.72,137.25,137.23,16.78994492]
[1765502681991,8.00610928,137.25,137.23,7.98]
[1765502682182,8.00610928,137.25,137.22,11.83167429]
[1765502682389,0.72,137.24,137.22,11.83167429]
[1765502682597,0.72,137.24,137.21,7.98]
[1765502682906,0.72,137.24,137.21,19.81167429]
[1765502683413,0.72,137.24,137.22,11.83167429]
[1765502684067,8.00669921,137.24,137.22,11.83167429]
[1765502684613,0.66,137.23,137.22,20.64161921]
[1765502685468,0.66,137.24,137.23,8.80994492]
[1765502685676,7.94555004,137.26,137.23,20.64161921]
[1765502685892,0.66,137.25,137.23,20.64161921]
[1765502686394,7.94606237,137.25,137.23,20.64161921]
[1765502686794,0.66,137.24,137.23,20.64161921]
[1765502687182,0.66,137.24,137.21,19.81167429]
[1765502688095,7.28703636,137.23,137.21,7.98]
[1765502688279,7.28703636,137.23,137.2,11.83167429]
[1765502688280,0.66,137.22,137.19,19.81167429]
[1765502688796,0.66,137.22,137.2,11.83167429]
[1765502688970,0.66,137.24,137.21,20.64161921]
[1765502689175,0.66,137.24,137.22,11.83167429]
[1765502689897,0.66,137.24,137.23,11.83167429]
[1765502690694,0.66,137.24,137.23,4.45981908]
[1765502691101,7.94676692,137.24,137.21,8.80994492]
[1765502691298,7.94676692,137.24,137.22,4.45981908]
[1765502692298,0.66,137.23,137.2,7.98]
[1765502692604,0.66,137.23,137.18,7.98]
[1765502692783,0.66,137.23,137.18,12.43981908]
[1765502693284,0.66,137.23,137.19,4.45981908]
[1765502693707,0.66,137.23,137.18,12.43981908]
[1765502694211,0.66,137.23,137.18,7.98]
[1765502694212,7.2875674,137.22,137.18,7.98]
[1765502694410,7.2875674,137.22,137.18,12.43981908]
[1765502694582,0.66,137.21,137.18,12.43981908]
[1765502695194,7.94838279,137.21,137.18,12.43981908]
[1765502695592,0.66,137.2,137.18,12.43981908]
[1765502696005,0.66,137.2,137.18,7.98]
[1765502696304,0.66,137.2,137.18,12.43981908]
[1765502697105,0.66,137.2,137.17,13.269764]
[1765502697300,7.28916101,137.19,137.17,13.269764]
[1765502697906,7.28916101,137.19,137.18,4.45981908]
[1765502698105,7.94916101,137.19,137.18,4.45981908]
[1765502699104,0.66,137.19,137.18,4.45981908]
[1765502699481,0.66,137.19,137.17,8.80994492]
[1765502699683,0.66,137.19,137.18,4.45981908]
[1765502700205,7.94916101,137.19,137.17,8.80994492]
[1765502700404,7.94916101,137.19,137.17,13.269764]
[1765502700705,0.66,137.19,137.17,13.269764]
[1765502701687,7.94917728,137.19,137.17,8.80994492]
[1765502701884,0.66,137.18,137.14,8.80994492]
[1765502702091,0.66,137.18,137.14,4.45981908]
[1765502702298,0.66,137.18,137.13,8.80994492]
[1765502702598,0.66,137.18,137.13,13.269764]
[1765502702802,5.11981908,137.18,137.13,13.269764]
[1765502703096,13.09981908,137.18,137.13,13.269764]
[1765502703298,7.29075532,137.16,137.13,13.269764]
[1765502703804,0.66,137.15,137.13,13.269764]
[1765502704190,7.29040756,137.17,137.14,5.14981908]
[1765502704395,7.9497065,137.18,137.16,4.45981908]
[1765502704803,0.66,137.17,137.16,4.45981908]
[1765502705010,0.66,137.17,137.13,16.1022876]
[1765502705193,0.66,137.17,137.14,4.45981908]
[1765502705598,7.9506615,137.17,137.14,4.45981908]
[1765502705806,0.66,137.16,137.14,4.45981908]
[1765502707087,0.66,137.23,137.16,21.85703612]
[1765502707302,0.66,137.23,137.22,4.45981908]
[1765502708508,0.66,137.23,137.19,16.78994492]
[1765502708509,7.94703636,137.23,137.19,16.78994492]
[1765502708811,7.94703636,137.23,137.19,28.62722851]
[1765502709002,0.66,137.22,137.19,7.98]
[1765502709195,0.66,137.22,137.17,16.78994492]
[1765502709402,0.66,137.22,137.18,11.83728359]
[1765502709909,7.28809853,137.21,137.18,11.83728359]
[1765502710616,0.66,137.2,137.18,11.83728359]
[1765502712197,0.66,137.2,137.17,16.78994492]
[1765502712399,7.94866508,137.2,137.17,16.78994492]
[1765502712614,7.94866508,137.2,137.17,28.62722851]
[1765502712819,0.66,137.19,137.17,16.78994492]